lending/lending_fUSD_20251121
["ID","MTS","AMOUNT","RATE_DAILY","PERIOD"]
[394554750,1763701049855,500.0,0.00018,30]
[394554751,1763701049947,500.0,0.00018,30]
[394554752,1763701050097,1600.0,0.00018,30]
[394554753,1763701050192,500.0,0.00018,30]
[394554754,1763701051294,500.0,0.00017,30]
[394554755,1763701051394,500.0,0.00018,30]
[394554756,1763701051448,500.0,0.00018,30]
[394554757,1763701051500,500.0,0.00018,30]
[394554758,1763701051556,1600.0,0.00018,30]
[394554759,1763701051623,500.0,0.00017,30]
[394554760,1763701051675,642.48663849,0.00018,30]
[394554761,1763701051728,500.0,0.00018,30]
[394554762,1763701051813,500.0,0.00018,30]
[394554763,1763701051932,500.0,0.00018,30]
[394554764,1763701051998,500.0,0.00018,30]
[394554765,1763701052243,1600.0,0.00018,30]
[394554766,1763701052299,500.0,0.00017,30]
[394554767,1763701052357,500.0,0.00018,30]
[394554768,1763701052440,500.0,0.00017,30]
[394554769,1763701052512,500.0,0.00017,30]
[394554770,1763701052607,500.0,0.00018,30]
[394554771,1763701052671,1600.0,0.00018,30]
[394554772,1763701052735,500.0,0.00017,30]
[394554773,1763701052796,500.0,0.00017,30]
[394554774,1763701052863,500.0,0.00017,30]
[394554775,1763701052928,500.0,0.00018,30]
[394554776,1763701052985,500.0,0.00017,30]
[394554777,1763701053038,154.08852439,0.00018,30]
[394554778,1763701053096,1600.0,0.00018,30]
[394554779,1763701053157,574.43682029,0.00017,30]
[394554780,1763701053219,500.0,0.00017,30]
[394554781,1763701053516,500.0,0.00017,30]
[394554782,1763701053572,500.0,0.00017,30]
[394554783,1763701053631,500.0,0.00018,30]
[394554784,1763701053697,500.0,0.00017,30]
[394554785,1763701053755,1600.0,0.00017,30]
[394554786,1763701053818,500.0,0.00017,30]
[394554787,1763701053880,500.0,0.00017,30]
[394554788,1763701053946,500.0,0.00017,30]
[394554789,1763701054016,1600.0,0.00017,30]
[394554790,1763701054068,500.0,0.00017,30]
[394554791,1763701054127,500.0,0.00017,30]
[394554792,1763701054200,500.0,0.00017,30]
[394554793,1763701054267,500.0,0.00017,30]
[394554794,1763701054399,500.0,0.00017,30]
[394554795,1763701054502,793.07466838,0.00017,30]
[394554796,1763701054564,513.98354851,0.00017,30]
[394554797,1763701054865,500.0,0.00017,30]
[394554798,1763701054938,500.0,0.00017,30]
[394554799,1763701055007,1600.0,0.00017,30]
[394554800,1763701055103,500.0,0.00017,30]
[394554801,1763701055181,1600.0,0.00017,30]
[394554802,1763701055283,500.0,0.00017,30]
[394554803,1763701055334,500.0,0.00017,30]
[394554804,1763701055430,1600.0,0.00017,30]
[394554805,1763701055494,994.33666262,0.00017,30]
[394554806,1763701055549,887.1526866,0.00017,30]
[394554807,1763701055611,1600.0,0.00017,30]
[394554808,1763701055733,1600.0,0.00017,30]
[394554809,1763701055853,1600.0,0.00017,30]
[394554810,1763701055952,1600.0,0.00017,30]
[394554811,1763701056218,1600.0,0.00017,30]
[394554812,1763701056316,1600.0,0.00017,30]
[394554813,1763701056436,1600.0,0.00017,30]
[394554814,1763701056620,1600.0,0.00017,30]
[394554815,1763701057431,2684.64841303,0.00017,30]
[394554816,1763701168402,979.3580889,0.00016283,120]
[394554817,1763701204846,180.0,0.00017,30]
[394554818,1763701207224,180.0,0.00017,30]
[394554819,1763701209800,205.0497137,0.00017,30]
[394554820,1763701211863,180.0,0.000187,30]
[394554822,1763701214512,196.69980913,0.000187,30]
[394554823,1763701238051,1197.82617917,0.00023,120]
[394554833,1763701295575,4724.913,0.0001596,2]
[394554834,1763701295623,199.211,0.0001596,2]
[394554835,1763701343724,626.9505919,0.00018,30]
[394554836,1763701412415,597.9542714,0.00015941,2]
[394554837,1763701412437,1002.0457286,0.00015941,2]
[394554838,1763701422873,2175.37,0.00016197,2]
[394554851,1763701480659,161.57027822,0.00016186,2]
[394554858,1763701562688,1247.06792376,0.00022396,120]
[394554861,1763701627418,2227.44812888,0.00016186,2]
[394554862,1763701627441,1133.36715337,0.00016186,2]
[394554863,1763701641459,400.0,0.000159,5]
[394554869,1763701653352,801.33864533,0.00017,30]
[394554871,1763701741054,161.57027822,0.00016186,2]
[394554872,1763701752209,426.05,0.00015755,2]
[394554873,1763701752644,160.0,0.000161,2]
[394554874,1763701753272,160.0,0.000161,2]
[394554875,1763701778188,160.0,0.0001619,2]
[394554876,1763701779239,160.0,0.0001619,2]
[394554877,1763701780625,160.0,0.0001619,2]
[394554878,1763701782988,200.0,0.00015772,2]
[394554879,1763701800298,2445.44670411,0.00016186,2]
[394554880,1763701800324,5566.4341357,0.00016186,2]
[394554881,1763701800348,5566.4341357,0.00016186,2]
[394554882,1763701800372,5566.4341357,0.00016186,2]
[394554883,1763701800396,2448.62698879,0.00016186,2]
[394554884,1763701817331,306.38247304,0.000161,2]
[394554894,1763701831925,-151.0,0.00016197,2]
[394554895,1763701831935,-250.0,0.00016198,2]
[394554896,1763701831945,-193.0,0.00016198,2]
[394554897,1763701831954,-1200.0,0.00016199,2]
[394554898,1763701831964,-300.0,0.00016199,2]
[394554899,1763701831973,-300.0,0.00016199,2]
[394554900,1763701831983,-300.0,0.00016199,2]
[394554901,1763701831992,-1200.0,0.00016199,2]
[394554902,1763701832002,-150.0,0.000162,2]
[394554903,1763701832012,-150.0,0.000162,2]
[394554904,1763701832022,-150.0,0.000162,2]
[394554905,1763701832031,-161.8400001,0.000162,2]
[394554906,1763701832041,-150.0,0.000162,2]
[394554907,1763701832050,-150.0,0.000162,2]
[394554908,1763701832059,-248.34887386,0.000162,2]
[394554909,1763701832069,-150.0,0.000162,2]
[394554910,1763701832079,-150.0,0.000162,2]
[394554911,1763701832088,-500.0,0.00016273,2]
[394554912,1763701832099,-263.42,0.00016276,3]
[394554913,1763701832108,-790.26,0.00016276,3]
[394554914,1763701832117,-197.80820498,0.00016283,2]
[394554915,1763701832127,-180.42895222,0.00016283,2]
[394554916,1763701832136,-500.0,0.00016285,2]
[394554917,1763701832146,-500.0,0.00016285,2]
[394554918,1763701832159,-500.0,0.00016285,2]
[394554919,1763701832176,-500.0,0.00016285,2]
[394554920,1763701832186,-500.0,0.00016285,2]
[394554921,1763701832195,-500.0,0.00016285,2]
[394554922,1763701832204,-500.0,0.00016285,2]
[394554923,1763701832214,-500.0,0.00016285,2]
[394554924,1763701832224,-500.0,0.00016285,2]
[394554925,1763701832232,-500.0,0.00016285,2]
[394554926,1763701832242,-500.0,0.00016285,2]
[394554927,1763701832251,-500.0,0.00016285,2]
[394554928,1763701832261,-400.0,0.00016285,2]
[394554929,1763701832270,-500.0,0.00016285,2]
[394554931,1763701832279,-500.0,0.00016285,2]
[394554933,1763701832289,-500.0,0.00016285,2]
[394554934,1763701832299,-500.0,0.00016285,2]
[394554936,1763701832308,-1070.93,0.00016285,2]
[394554937,1763701832318,-505.39826263,0.00016285,2]
[394554938,1763701832328,-500.0,0.00016285,2]
[394554940,1763701832338,-223.4641347,0.00016285,2]
[394554941,1763701832347,-500.10647632,0.00016285,2]
[394554942,1763701832356,-216.03734816,0.00016285,2]
[394554943,1763701832366,-500.0,0.00016285,2]
[394554944,1763701832375,-500.0,0.00016285,2]
[394554945,1763701832385,-500.0,0.00016285,2]
[394554946,1763701832395,-500.0,0.00016285,2]
[394554947,1763701832405,-500.0,0.00016285,2]
[394554948,1763701832415,-500.0,0.00016285,2]
[394554949,1763701832424,-500.0,0.00016285,2]
[394554950,1763701832433,-500.0,0.00016285,2]
[394554951,1763701832444,-500.0,0.00016285,2]
[394554952,1763701832455,-500.0,0.00016285,2]
[394554953,1763701832465,-160.63028607,0.00016285,2]
[394554954,1763701832474,-500.0,0.00016285,2]
[394554955,1763701832483,-500.0,0.00016285,2]
[394554956,1763701832493,-500.0,0.00016285,2]
[394554957,1763701832502,-500.0,0.00016285,2]
[394554958,1763701832512,-7844.8971,0.00016286,2]
[394554959,1763701832521,-1000.0,0.00016286,2]
[394554960,1763701832531,-3360.81528221,0.00016376,2]
[394554961,1763701832542,-510.5854371,0.00016385,2]
[394554962,1763701832552,-500.0,0.00016385,2]
[394554963,1763701832561,-500.0,0.00016385,2]
[394554964,1763701832571,-500.0,0.00016385,2]
[394554965,1763701832581,-5009.14,0.00016385,2]
[394554966,1763701832590,-414.79,0.00016385,2]
[394554967,1763701832603,-500.0,0.00016385,2]
[394554968,1763701832612,-1070.93,0.00016559,2]
[394554969,1763701832622,-3360.81528221,0.00016567,2]
[394554970,1763701832799,-2182.97,0.000166,2]
[394554971,1763701832854,-701.05,0.000166,2]
[394554972,1763701832864,-701.05,0.000166,2]
[394554973,1763701832873,-701.05,0.000166,2]
[394554974,1763701832883,-695.21,0.000166,2]
[394554975,1763701832892,-150.0,0.000166,2]
[394554976,1763701832902,-564.16,0.000167,2]
[394554977,1763701832911,-1210.38,0.000167,2]
[394554978,1763701832921,-1187.66,0.000167,2]
[394554979,1763701832930,-701.05,0.000167,2]
[394554980,1763701832939,-701.05,0.000167,2]
[394554981,1763701832948,-228.0,0.00016735,2]
[394554982,1763701832958,-3360.81528221,0.00016757,2]
[394554983,1763701832967,-711.97090635,0.00016765,2]
[394554984,1763701832976,-425.0,0.00016769,2]
[394554985,1763701832985,-361.0,0.00016802,2]
[394554986,1763701832995,-1000.0,0.00016821,2]
[394554987,1763701833004,-167.17,0.00016829,2]
[394554988,1763701833014,-408.4101,0.0001683,2]
[394554989,1763701833024,-1070.93,0.00016833,2]
[394554990,1763701833035,-440.0,0.00016836,2]
[394554991,1763701833044,-481.0,0.00016869,2]
[394554992,1763701833054,-168.0,0.00016897,2]
[394554993,1763701833064,-800.0,0.000169,6]
[394554994,1763701833073,-478.87,0.000169,2]
[394554995,1763701833085,-478.87,0.000169,2]
[394554996,1763701833095,-478.87,0.000169,2]
[394554997,1763701833104,-478.87,0.000169,2]
[394554998,1763701833113,-701.05,0.000169,2]
[394554999,1763701833123,-478.87,0.000169,2]
[394555000,1763701833132,-478.87,0.000169,2]
[394555001,1763701833142,-273.08,0.000169,2]
[394555002,1763701833152,-478.75,0.000169,2]
[394555003,1763701833165,-955.96,0.000169,2]
[394555004,1763701833179,-171.87246301,0.000169,2]
[394555005,1763701833188,-3579.42453532,0.000169,2]
[394555006,1763701833201,-6944.9129358,0.000169,2]
[394555007,1763701833211,-261.0,0.00016902,2]
[394555008,1763701833220,-462.0,0.00016923,2]
[394555009,1763701833230,-168.0,0.00016923,2]
[394555010,1763701833240,-168.0,0.00016926,2]
[394555011,1763701833250,-471.0,0.00016936,2]
[394555012,1763701833259,-245.28,0.00016941,2]
[394555013,1763701833269,-1702.2902357,0.00016944,2]
[394555014,1763701833279,-3360.81528221,0.00016948,2]
[394555015,1763701833289,-173.0,0.00016957,2]
[394555016,1763701833299,-243.0,0.00016969,2]
[394555017,1763701833308,-500.0,0.00016973,2]
[394555018,1763701833318,-500.0,0.00016973,2]
[394555019,1763701833328,-646.75971961,0.00016973,2]
[394555020,1763701833337,-500.0,0.00016973,2]
[394555021,1763701833346,-89323.89818616,0.00016986,2]
[394555022,1763701833357,-1254.41808677,0.00016986,2]
[394555023,1763701833369,-861.63087707,0.00016986,2]
[394555024,1763701833407,-1276.43348147,0.00016986,2]
[394555025,1763701833990,-12915.2,0.00016986,2]
[394555027,1763701837881,-293.52728359,0.00016567,2]
[394555028,1763701837891,-1517.63271641,0.00016986,2]
[394555029,1763701837906,-749.9999998,0.00016986,2]
[394555030,1763701837962,-625.89475458,0.00016986,2]
[394555031,1763701838017,-1406.99189774,0.00016986,2]
[394555033,1763701838026,-201.0,0.0001699,2]
[394555035,1763701838036,-500.0,0.00016999,2]
[394555037,1763701838046,-500.0,0.00016999,2]
[394555039,1763701838055,-500.0,0.00016999,2]
[394555041,1763701838064,-126.25780352,0.00016999,2]
[394555208,1763701839847,-384.73803322,0.00016999,2]
[394555209,1763701839856,-500.0,0.00016999,2]
[394555211,1763701839865,-500.0,0.00016999,2]
[394555213,1763701839875,-500.0,0.00016999,2]
[394555214,1763701839884,-45.99966943,0.00016999,2]
[394555215,1763701839910,-454.00033057,0.00016999,2]
[394555216,1763701839920,-457.53077476,0.00016999,2]
[394555217,1763701839930,-300.0,0.00016999,2]
[394555218,1763701839940,-514.27266316,0.00016999,2]
[394555219,1763701839949,-11708.06287886,0.00017,2]
[394555220,1763701839961,-18029.1026328,0.00017,2]
[394555221,1763701839972,-3537.01848076,0.00017,2]
[394555222,1763701840024,-216914.04867164,0.00017,2]
[394555223,1763701840034,-701.05,0.00017,2]
[394555224,1763701840044,-701.05,0.00017,2]
[394555225,1763701840054,-90612.7218914,0.00017,2]
[394555226,1763701840064,-478.87,0.00017,2]
[394555227,1763701840073,-57450.1634546,0.00017,2]
[394555228,1763701840083,-478.87,0.00017,2]
[394555229,1763701840093,-478.75,0.00017,2]
[394555230,1763701840102,-478.75,0.00017,2]
[394555231,1763701840111,-957.21,0.00017,2]
[394555232,1763701840121,-478.75,0.00017,2]
[394555233,1763701840130,-42059.3117674,0.00017,2]
[394555234,1763701840139,-478.75,0.00017,2]
[394555235,1763701840149,-478.75,0.00017,2]
[394555236,1763701840158,-151.0,0.00017,2]
[394555237,1763701840168,-151.0,0.00017,2]
[394555238,1763701840177,-151.0,0.00017,2]
[394555239,1763701840187,-151.0,0.00017,2]
[394555240,1763701840196,-155.149677,0.00017,2]
[394555242,1763701840205,-151.0,0.00017,2]
[394555244,1763701840214,-151.0,0.00017,2]
[394555246,1763701840223,-1086.999687,0.00017,2]
[394555248,1763701840232,-1086.999687,0.00017,2]
[394555250,1763701840243,-1086.999687,0.00017,2]
[394555251,1763701840252,-1086.999687,0.00017,2]
[394555252,1763701840262,-1086.999687,0.00017,2]
[394555254,1763701840271,-1086.999687,0.00017,2]
[394555256,1763701840280,-1086.999687,0.00017,2]
[394555258,1763701840290,-1086.999687,0.00017,2]
[394555260,1763701840299,-151.0,0.00017,2]
[394555262,1763701840309,-151.0,0.00017,2]
[394555264,1763701840319,-277.303219,0.00017,2]
[394555265,1763701840329,-250.0,0.00017,2]
[394555266,1763701840338,-446.0,0.00017003,2]
[394555267,1763701840348,-168.0,0.00017004,2]
[394555268,1763701840357,-10524.33747103,0.00017011,2]
[394555269,1763701840367,-168.11494042,0.00017022,2]
[394555270,1763701840376,-158.0,0.00017024,2]
[394555271,1763701840385,-4548.0,0.00017045,2]
[394555272,1763701840394,-235.0,0.00017058,2]
[394555273,1763701840403,-171.87246299,0.00017067,2]
[394555274,1763701840412,-166.0,0.00017092,2]
[394555275,1763701840422,-150.0,0.000171,2]
[394555276,1763701840435,-150.0,0.000171,2]
[394555277,1763701840452,-1401.0,0.000171,2]
[394555278,1763701840461,-1070.93,0.00017107,2]
[394555279,1763701840475,-10524.33747103,0.00017122,2]
[394555280,1763701840488,-239.0,0.00017125,2]
[394555281,1763701840500,-3360.81528221,0.00017138,2]
[394555282,1763701840513,-245.0,0.00017159,2]
[394555283,1763701840523,-168.11494038,0.00017168,2]
[394555284,1763701840534,-300.0,0.00017174,2]
[394555285,1763701840544,-151.0,0.00017182,2]
[394555286,1763701840554,-352.0,0.00017193,2]
[394555287,1763701840563,-478.87,0.000172,2]
[394555288,1763701840574,-478.87,0.000172,2]
[394555289,1763701840584,-152.842452,0.000172,2]
[394555290,1763701840596,-151.0,0.000172,2]
[394555291,1763701840608,-151.0,0.000172,2]
[394555292,1763701840618,-152.713919,0.000172,2]
[394555293,1763701840629,-1000.0,0.000172,2]
[394555294,1763701840638,-166.66,0.00017229,2]
[394555295,1763701840649,-151.0,0.00017233,2]
[394555296,1763701840664,-171.87246299,0.00017233,2]
[394555297,1763701840676,-10524.33747103,0.00017233,2]
[394555298,1763701840689,-478.87,0.000173,2]
[394555299,1763701840699,-1200.0,0.000173,6]
[394555300,1763701840708,-168.0,0.00017306,2]
[394555301,1763701840719,-168.11494038,0.00017315,2]
[394555302,1763701840731,-168.0,0.00017317,2]
[394555303,1763701840744,-3360.81528221,0.00017329,2]
[394555304,1763701840753,-1500.0,0.00017368,2]
[394555307,1763701840763,-1070.93,0.00017381,2]
[394555308,1763701840773,-168.0,0.00017386,2]
[394555309,1763701840782,-1000.0,0.000174,2]
[394555311,1763701840792,-171.87246299,0.000174,2]
[394555313,1763701840807,-1600.0,0.000174,6]
[394555314,1763701840817,-531.06830644,0.00017412,2]
[394555315,1763701840825,-500.0,0.00017421,2]
[394555316,1763701840835,-500.0,0.00017421,2]
[394555317,1763701840850,-200.0,0.00017421,2]
[394555318,1763701840861,-500.0,0.00017421,2]
[394555319,1763701840871,-500.0,0.00017421,2]
[394555320,1763701840881,-500.0,0.00017421,2]
[394555321,1763701840895,-200.0,0.00017421,2]
[394555322,1763701840907,-500.0,0.00017421,2]
[394555323,1763701840917,-500.0,0.00017421,2]
[394555324,1763701840929,-500.0,0.00017422,2]
[394555325,1763701840939,-500.0,0.00017422,2]
[394555326,1763701840948,-500.0,0.00017422,2]
[394555327,1763701840957,-500.0,0.00017422,2]
[394555328,1763701840967,-500.0,0.00017422,2]
[394555329,1763701840976,-500.0,0.00017422,2]
[394555330,1763701840987,-500.0,0.00017422,2]
[394555331,1763701840996,-500.0,0.00017422,2]
[394555332,1763701841006,-500.0,0.00017422,2]
[394555333,1763701841016,-500.0,0.00017422,2]
[394555334,1763701841026,-200.0,0.00017422,2]
[394555335,1763701841035,-200.0,0.00017422,2]
[394555336,1763701841044,-168.0,0.00017442,2]
[394555337,1763701841054,-168.11494038,0.00017461,2]
[394555338,1763701841066,-1374.0,0.000175,2]
[394555339,1763701841076,-2000.0,0.000175,6]
[394555340,1763701841085,-794.0,0.00017502,2]
[394555341,1763701841095,-1256.0,0.00017502,2]
[394555342,1763701841105,-3360.81528221,0.00017519,2]
[394555343,1763701841114,-487.452036,0.00017521,2]
[394555344,1763701841124,-1000.0,0.00017521,2]
[394555345,1763701841133,-1000.0,0.00017521,2]
[394555346,1763701841142,-908.0,0.00017526,2]
[394555347,1763701841151,-1109.2546295,0.00017526,2]
[394555348,1763701841376,-82.7453705,0.00017526,2]
[394555349,1763701841386,-1043.87456371,0.00017526,2]
[394555350,1763701841399,-562.12543629,0.00017526,2]
[394555351,1763701841408,-2023.28258643,0.00017526,2]
[394555352,1763701841420,-537.16304566,0.00017526,2]
[394555379,1763701844833,-98.55436791,0.00017526,2]
[394555380,1763701844841,-561.0,0.00017526,2]
[394555381,1763701844850,-6496.0,0.00017526,2]
[394555382,1763701844858,-168.0,0.00017553,2]
[394555383,1763701844867,-151.0,0.00017562,2]
[394555384,1763701844876,-171.87246299,0.00017567,2]
[394555385,1763701844885,-400.0,0.000176,6]
[394555386,1763701844894,-1057.70014654,0.00017605,5]
[394555387,1763701844903,-150.0,0.00017606,2]
[394555388,1763701844912,-260.0,0.00017606,2]
[394555389,1763701844921,-150.0,0.00017606,2]
[394555390,1763701844930,-150.0,0.00017606,2]
[394555391,1763701844939,-150.0,0.00017606,2]
[394555392,1763701844949,-150.0,0.00017606,2]
[394555393,1763701844958,-150.0,0.00017606,2]
[394555394,1763701844967,-250.0,0.00017606,2]
[394555395,1763701844977,-150.0,0.00017606,2]
[394555396,1763701844986,-150.0,0.00017606,2]
[394555397,1763701844995,-150.0,0.00017606,2]
[394555398,1763701845005,-1319.0,0.00017606,2]
[394555399,1763701845014,-3435.0,0.00017606,2]
[394555400,1763701845023,-609.0,0.00017606,2]
[394555401,1763701845033,-575.0,0.00017606,2]
[394555402,1763701845041,-822.0,0.00017606,2]
[394555403,1763701845051,-1601.0,0.00017606,2]
[394555404,1763701845060,-168.11494038,0.00017607,2]
[394555405,1763701845070,-526.84,0.00017646,3]
[394555406,1763701845080,-1070.93,0.00017655,2]
[394555407,1763701845091,-168.0,0.00017687,2]
[394555408,1763701845101,-400.0,0.000177,6]
[394555409,1763701845110,-168.0,0.00017701,2]
[394555410,1763701845121,-255.84,0.00017704,2]
[394555411,1763701845131,-420.0,0.00017707,2]
[394555412,1763701845141,-420.0,0.00017707,2]
[394555413,1763701845151,-1742.80947358,0.0001771,2]
[394555414,1763701845187,-809.7756441,0.00017344,2]
[394555415,1763701845206,-9714.56182693,0.00017344,2]
[394555416,1763701845216,-1618.00580863,0.0001771,2]
[394555417,1763701845225,-1000.0,0.00017722,2]
[394555418,1763701845236,-189.99469603,0.0001773,2]
[394555419,1763701845246,-171.87246299,0.00017733,2]
[394555420,1763701845256,-168.11494038,0.00017754,2]
[394555421,1763701845266,-166.66,0.00017762,2]
[394555422,1763701845276,-500.0,0.00017773,2]
[394555423,1763701845285,-25000.0,0.00017777,3]
[394555424,1763701845295,-5822.02594464,0.00017785,2]
[394555425,1763701845305,-191.393216,0.00017785,2]
[394555426,1763701845315,-500.0,0.00017785,2]
[394555427,1763701845324,-151.0,0.00017785,2]
[394555428,1763701845333,-151.0,0.00017785,2]
[394555429,1763701845342,-151.0,0.00017785,2]
[394555430,1763701845351,-182.620435,0.00017785,2]
[394555431,1763701845361,-1086.999687,0.00017785,2]
[394555432,1763701845370,-1086.999687,0.00017785,2]
[394555433,1763701845380,-1086.999687,0.00017785,2]
[394555434,1763701845390,-1086.999687,0.00017785,2]
[394555435,1763701845400,-151.0,0.00017785,2]
[394555436,1763701845410,-25000.0,0.00017786,3]
[394555437,1763701845420,-500.0,0.00017794,2]
[394555438,1763701845429,-25000.0,0.00017794,3]
[394555439,1763701845438,-1680.0,0.00017796,2]
[394555440,1763701845448,-400.0,0.000178,6]
[394555441,1763701845458,-155.896795,0.00017803,2]
[394555442,1763701845468,-25000.0,0.00017803,3]
[394555443,1763701845478,-25000.0,0.00017812,3]
[394555444,1763701845487,-426.56612961,0.00017812,3]
[394555445,1763701845497,-189.99469603,0.00017815,2]
[394555446,1763701845507,-193.0,0.00017817,2]
[394555447,1763701845516,-300.0,0.00017817,2]
[394555448,1763701845526,-300.0,0.00017817,2]
[394555449,1763701845536,-300.0,0.00017817,2]
[394555450,1763701845559,-200.0,0.00017817,2]
[394555451,1763701845568,-200.0,0.00017817,2]
[394555452,1763701845578,-200.43996737,0.00017817,2]
[394555453,1763701845587,-250.0,0.00017817,2]
[394555454,1763701845596,-193.0,0.00017817,2]
[394555455,1763701845605,-300.0,0.00017817,2]
[394555456,1763701845615,-300.0,0.00017817,2]
[394555457,1763701845624,-300.0,0.00017817,2]
[394555458,1763701845633,-250.0,0.00017817,2]
[394555459,1763701845643,-300.0,0.00017817,2]
[394555460,1763701845654,-300.0,0.00017817,2]
[394555461,1763701845665,-25000.0,0.00017821,3]
[394555462,1763701845675,-25000.0,0.0001783,3]
[394555463,1763701845684,-426.56612961,0.0001783,3]
[394555464,1763701845695,-408.4101,0.0001783,2]
[394555466,1763701845704,-392.64912943,0.00017834,2]
[394555467,1763701845714,-151.0,0.00017838,2]
[394555469,1763701845723,-191.228012,0.00017838,2]
[394555470,1763701845732,-25000.0,0.00017838,3]
[394555471,1763701845742,-151.0,0.00017847,2]
[394555472,1763701845752,-1086.999687,0.00017847,2]
[394555473,1763701845761,-1086.999687,0.00017847,2]
[394555474,1763701845771,-1086.999687,0.00017847,2]
[394555475,1763701845780,-1086.999687,0.00017847,2]
[394555476,1763701845790,-151.0,0.00017847,2]
[394555477,1763701845800,-25000.0,0.00017847,3]
[394555478,1763701845809,-25000.0,0.00017856,3]
[394555479,1763701845819,-500.0,0.00017864,2]
[394555481,1763701845830,-25000.0,0.00017865,3]
[394555483,1763701845840,-500.0,0.00017873,2]
[394555484,1763701845849,-500.0,0.00017873,2]
[394555485,1763701845859,-25000.0,0.00017874,3]
[394555486,1763701845868,-25000.0,0.00017882,3]
[394555487,1763701845878,-25000.0,0.00017891,3]
[394555488,1763701845888,-300.0,0.00017899,2]
[394555489,1763701845899,-22135.43193704,0.000179,3]
[394555490,1763701845908,-25000.0,0.000179,3]
[394555491,1763701845918,-168.11494038,0.000179,2]
[394555492,1763701845928,-189.99469603,0.000179,2]
[394555493,1763701845937,-171.87246299,0.000179,2]
[394555494,1763701845947,-151.0,0.000179,2]
[394555495,1763701845956,-400.0,0.000179,6]
[394555496,1763701845965,-3360.81528221,0.000179,2]
[394555497,1763701845974,-163.409552,0.000179,2]
[394555498,1763701845983,-1086.999687,0.000179,2]
[394555499,1763701845993,-1086.999687,0.000179,2]
[394555500,1763701846002,-1086.999687,0.000179,2]
[394555501,1763701846012,-1086.999694,0.000179,2]
[394555502,1763701846022,-151.0,0.000179,2]
[394555503,1763701846032,-200.10210893,0.000179,2]
[394555504,1763701846048,-1703.61654081,0.000179,2]
[394555505,1763701846067,-500.0,0.000179,2]
[394555506,1763701846077,-500.0,0.000179,2]
[394555507,1763701846087,-500.0,0.000179,2]
[394555508,1763701846097,-500.0,0.000179,2]
[394555509,1763701846106,-500.0,0.000179,2]
[394555510,1763701846116,-500.0,0.000179,2]
[394555511,1763701846126,-500.0,0.000179,2]
[394555512,1763701846135,-500.0,0.000179,2]
[394555513,1763701846144,-500.0,0.000179,2]
[394555514,1763701846153,-500.0,0.000179,2]
[394555515,1763701846163,-500.0,0.000179,2]
[394555517,1763701846173,-500.0,0.000179,2]
[394555519,1763701846182,-384.45965617,0.000179,2]